bitfinex/quotes_BTCUSD_20241013
["timestamp","ask_amount","ask_price","bid_price","bid_amount"]
[1728853064823,0.008819,62801.0,62800.0,0.24157563]
[1728853065058,0.014819,62801.0,62800.0,0.24257563]
[1728853065351,0.014819,62801.0,62800.0,0.43892404]
[1728853065566,0.014819,62801.0,62800.0,0.53513964]
[1728853066501,0.006819,62801.0,62800.0,0.53413964]
[1728853066735,0.001819,62801.0,62800.0,0.54013964]
[1728853066968,0.002819,62801.0,62800.0,0.54813964]
[1728853071393,0.002819,62801.0,62800.0,0.57613964]
[1728853073268,0.002819,62801.0,62800.0,0.58251964]
[1728853074787,0.002819,62801.0,62800.0,0.55951964]
[1728853080164,0.002819,62801.0,62800.0,0.58251964]
[1728853081514,0.002819,62801.0,62800.0,0.79688625]
[1728853082720,0.000819,62801.0,62800.0,0.78188625]
[1728853082969,0.002819,62801.0,62800.0,0.80488625]
[1728853083199,0.001819,62801.0,62800.0,0.68151964]
[1728853083438,0.000819,62801.0,62800.0,0.66751964]
[1728853083673,0.001819,62801.0,62800.0,0.68151964]
[1728853083914,0.002819,62801.0,62800.0,0.69051964]
[1728853084176,0.002819,62801.0,62800.0,0.69249964]
[1728853087694,0.002819,62801.0,62800.0,0.80488625]
[1728853096316,0.002819,62801.0,62800.0,0.80290625]
[1728853097856,0.002819,62801.0,62800.0,0.80488625]
[1728853098284,0.002819,62801.0,62800.0,0.85449972]
[1728853098955,0.002819,62801.0,62800.0,0.96688633]
[1728853099176,0.002819,62801.0,62800.0,2.21928633]
[1728853099934,0.000319,62803.0,62802.0,0.48995]
[1728853100148,0.000319,62803.0,62802.0,0.70078748]
[1728853100362,0.000319,62803.0,62802.0,0.81317409]
[1728853100586,0.000319,62803.0,62802.0,0.70078748]
[1728853101718,0.000319,62803.0,62802.0,0.71478748]
[1728853102147,0.001319,62803.0,62802.0,0.72878748]
[1728853103498,0.001319,62803.0,62802.0,1.98118748]
[1728853106852,0.00082,62809.0,62808.0,0.71470822]
[1728853107078,0.00082,62809.0,62808.0,2.1779457]
[1728853107791,0.00082,62809.0,62808.0,2.22543865]
[1728853108017,0.00082,62809.0,62808.0,2.26005653]
[1728853108472,0.00082,62809.0,62808.0,2.44821319]
[1728853108688,0.00182,62809.0,62808.0,2.36339875]
[1728853108913,0.00082,62809.0,62808.0,2.36439875]
[1728853109143,0.00182,62809.0,62808.0,2.37839875]
[1728853109361,0.00182,62809.0,62808.0,2.46221319]
[1728853109568,0.00182,62809.0,62808.0,2.47410768]
[1728853110240,0.00182,62809.0,62808.0,2.37929324]
[1728853110451,0.00182,62809.0,62808.0,2.47410768]
[1728853110666,0.00182,62809.0,62808.0,2.37929324]
[1728853111399,0.00182,62809.0,62808.0,2.39329324]
[1728853111603,0.00182,62809.0,62808.0,2.39330457]
[1728853112506,0.00182,62809.0,62808.0,2.48837098]
[1728853112740,0.00182,62809.0,62808.0,2.39330457]
[1728853114536,0.00182,62809.0,62808.0,2.46460712]
[1728853114780,0.00182,62809.0,62808.0,2.46460728]
[1728853115231,0.00182,62809.0,62808.0,2.39330457]
[1728853115457,0.00182,62809.0,62808.0,2.46460702]
[1728853115688,0.00182,62809.0,62808.0,2.39330457]
[1728853116143,0.00182,62809.0,62808.0,2.48837026]
[1728853117327,0.00182,62809.0,62808.0,2.3933041]
[1728853119583,0.00182,62809.0,62808.0,2.49471514]
[1728853120479,0.00182,62809.0,62808.0,2.3856811]
[1728853120690,0.00182,62809.0,62808.0,2.48071359]
[1728853120902,0.00182,62809.0,62808.0,2.3996811]
[1728853121344,0.00182,62809.0,62808.0,2.49471283]
[1728853121559,0.00082,62809.0,62808.0,2.48071702]
[1728853121768,0.00082,62809.0,62808.0,2.49471702]
[1728853123613,0.00082,62809.0,62808.0,2.3996811]
[1728853124276,0.001638,62811.0,62809.0,0.321132]
[1728853124503,0.001638,62811.0,62809.0,0.70743339]
[1728853125639,1e-06,62814.0,62813.0,0.00698]
[1728853125876,0.166,62828.0,62817.0,0.321112]
[1728853126105,0.166,62828.0,62817.0,1.00344292]
[1728853126814,0.166,62828.0,62817.0,2.18458661]
[1728853127027,0.000819,62831.0,62830.0,0.287159]
[1728853127263,0.000819,62831.0,62830.0,0.56395229]
[1728853127475,0.000819,62831.0,62830.0,0.56076962]
[1728853127701,0.000819,62831.0,62830.0,0.70707623]
[1728853127945,0.000819,62831.0,62830.0,0.59468962]
[1728853128624,0.000819,62831.0,62830.0,0.59868962]
[1728853128862,0.000819,62831.0,62830.0,0.59968962]
[1728853129093,0.000819,62831.0,62830.0,0.53379294]
[1728853129330,0.000819,62831.0,62830.0,0.59868962]
[1728853129543,0.000819,62831.0,62830.0,0.65812176]
[1728853129963,0.000819,62831.0,62830.0,0.65412176]
[1728853130181,0.000819,62831.0,62830.0,0.66812176]
[1728853130620,0.000819,62831.0,62830.0,0.60668962]
[1728853131078,0.000819,62831.0,62830.0,0.63368962]
[1728853131318,0.000819,62831.0,62830.0,0.63170962]
[1728853131536,0.000819,62831.0,62830.0,0.63368962]
[1728853132039,0.000819,62831.0,62830.0,0.70908962]
[1728853132278,0.075819,62844.0,62843.0,0.005]
[1728853132505,0.075819,62844.0,62843.0,0.59585863]
[1728853132506,0.000819,62844.0,62843.0,0.59585863]
[1728853132735,0.000819,62844.0,62843.0,0.59267662]
[1728853133416,0.000819,62844.0,62843.0,1.97144323]
[1728853133862,0.000819,62844.0,62843.0,1.87473909]
[1728853134286,0.000819,62844.0,62843.0,1.87273909]
[1728853134766,0.000819,62844.0,62843.0,1.87573909]
[1728853134944,0.000819,62844.0,62843.0,1.88973909]
[1728853135169,0.000819,62844.0,62843.0,1.88743637]
[1728853135395,0.000819,62844.0,62843.0,1.99982298]
[1728853135610,0.000819,62844.0,62843.0,2.01382298]
[1728853136101,0.000819,62844.0,62843.0,1.77604976]
[1728853136338,0.000819,62844.0,62843.0,1.90243637]
[1728853136776,0.000819,62844.0,62843.0,1.88843637]
[1728853137009,0.000819,62844.0,62843.0,1.90243637]
[1728853137209,0.000819,62844.0,62843.0,1.91643637]
[1728853137648,0.000819,62844.0,62843.0,1.77906976]
[1728853137865,0.000819,62844.0,62843.0,1.89145637]
[1728853138339,0.000819,62844.0,62843.0,1.95520637]
[1728853138556,0.000819,62844.0,62843.0,1.84281976]
[1728853138772,0.000819,62844.0,62843.0,1.81481976]
[1728853138987,0.000819,62844.0,62843.0,1.91320637]
[1728853139218,0.000819,62844.0,62843.0,1.93620637]
[1728853139449,0.000819,62844.0,62843.0,1.9345239]
[1728853139904,0.000819,62844.0,62843.0,1.80813729]
[1728853140122,0.000819,62844.0,62843.0,1.81813729]
[1728853140368,0.000819,62844.0,62843.0,1.83013729]
[1728853140799,0.000819,62844.0,62843.0,1.82813729]
[1728853141044,0.000819,62844.0,62843.0,0.56373729]
[1728853141942,0.000819,62844.0,62843.0,0.58573729]
[1728853142181,0.24124022,62844.0,62843.0,0.47804001]
[1728853142404,0.332743,62844.0,62843.0,0.039]
[1728853142620,0.17281128,62844.0,62843.0,0.039]
[1728853143049,0.17281128,62844.0,62843.0,0.03]
[1728853143469,0.17281128,62844.0,62843.0,0.174126]
[1728853143897,0.17281128,62844.0,62843.0,0.015]
[1728853144548,0.17281128,62844.0,62843.0,0.174126]
[1728853145011,0.17281128,62844.0,62843.0,0.015]
[1728853145669,0.17381128,62844.0,62843.0,0.174126]
[1728853149508,0.17381128,62844.0,62843.0,0.175764]
[1728853154199,0.17658062,62844.0,62843.0,0.175764]
[1728853154611,0.00101128,62844.0,62843.0,0.175764]
[1728853154913,0.0027693,62847.0,62846.0,0.187119]
[1728853155120,0.00024,62850.0,62849.0,0.191051]
[1728853155339,0.00024,62850.0,62849.0,0.54504021]
[1728853155571,0.00024,62850.0,62849.0,0.54185848]
[1728853156566,0.00024,62850.0,62849.0,0.54685848]
[1728853156997,0.00024,62850.0,62849.0,0.54185848]
[1728853157222,0.00024,62850.0,62849.0,0.55185848]
[1728853157686,0.00024,62850.0,62849.0,0.56385848]
[1728853160749,0.00024,62850.0,62849.0,0.56885848]
[1728853161390,0.001059,62850.0,62849.0,0.56885848]
[1728853163290,0.001059,62850.0,62849.0,0.57083848]
[1728853164435,0.24124022,62864.0,62863.0,0.159076]
[1728853164436,0.20593803,62864.0,62863.0,0.159076]
[1728853164664,0.04471402,62864.0,62863.0,0.159076]
[1728853164894,0.159044,62876.0,62865.0,0.159071]
[1728853165119,0.159048,62874.0,62865.0,0.159071]
[1728853165350,0.000819,62866.0,62865.0,0.159071]
[1728853167580,0.077119,62866.0,62865.0,0.159071]
[1728853169681,0.077119,62866.0,62865.0,0.160071]
[1728853177700,0.077119,62866.0,62865.0,0.001]
[1728853178152,0.329987,62866.0,62865.0,0.001]
[1728853178821,0.329987,62866.0,62862.0,0.159077]
[1728853179272,0.170919,62866.0,62863.0,0.159075]
[1728853179516,0.329987,62866.0,62863.0,0.159075]
[1728853179735,0.314987,62866.0,62863.0,0.159075]
[1728853180184,0.18083633,62866.0,62863.0,0.159075]
[1728853180394,0.02491733,62866.0,62865.0,0.159071]
[1728853180625,0.0938,62870.0,62869.0,0.15906]
[1728853181948,0.000819,62873.0,62865.0,0.318137]
[1728853182166,0.000819,62873.0,62871.0,0.159055]
[1728853182397,0.000819,62873.0,62870.0,0.159056]
[1728853182638,0.15987,62873.0,62870.0,0.159056]
[1728853183088,0.000819,62873.0,62871.0,0.159055]
[1728853185270,0.000819,62873.0,62871.0,0.34327901]
[1728853185500,0.000819,62873.0,62871.0,0.35221901]
[1728853186152,0.000819,62873.0,62871.0,0.35521901]
[1728853186616,0.000819,62873.0,62871.0,0.35221901]
[1728853186843,0.000819,62873.0,62871.0,0.36321901]
[1728853187050,0.000819,62873.0,62871.0,0.201995]
[1728853187257,0.000819,62873.0,62871.0,0.200995]
[1728853187465,0.000819,62873.0,62871.0,0.208995]
[1728853188501,0.000819,62873.0,62871.0,0.177055]
[1728853188716,0.000819,62873.0,62871.0,0.208995]
[1728853197289,0.000819,62873.0,62871.0,0.200995]
[1728853197506,0.000819,62873.0,62871.0,0.206995]
[1728853197715,0.000819,62873.0,62871.0,0.196995]
[1728853197945,0.000819,62873.0,62871.0,0.200995]
[1728853198406,0.000819,62873.0,62871.0,0.196995]
[1728853198863,0.000819,62873.0,62871.0,0.204995]
[1728853209143,0.000819,62873.0,62871.0,0.173055]
[1728853209360,0.000819,62873.0,62871.0,0.204995]
[1728853214318,0.000819,62873.0,62871.0,0.196995]
[1728853214557,0.000819,62873.0,62871.0,0.194995]
[1728853214793,0.000819,62873.0,62871.0,0.197995]
[1728853215041,0.000819,62873.0,62871.0,0.193995]
[1728853215275,0.000819,62873.0,62871.0,0.198995]
[1728853217669,0.000819,62873.0,62871.0,0.21112131]
[1728853217896,0.000819,62873.0,62871.0,0.21162131]
[1728853218135,0.000819,62873.0,62871.0,0.29382131]
[1728853218360,0.000819,62873.0,62871.0,0.29700199]
[1728853224773,0.000819,62873.0,62871.0,0.458226]
[1728853225058,0.000819,62873.0,62871.0,0.45504532]
[1728853226932,0.000819,62873.0,62871.0,0.45204532]
[1728853227167,0.000819,62873.0,62871.0,0.44704532]
[1728853227403,0.000819,62873.0,62871.0,0.44904532]
[1728853227645,0.000819,62873.0,62871.0,0.49843618]
[1728853228575,0.000819,62873.0,62871.0,0.91336654]
[1728853228820,0.000819,62873.0,62871.0,0.96707801]
[1728853229043,0.000819,62873.0,62871.0,0.96907801]
[1728853229254,0.000819,62873.0,62871.0,0.85060085]
[1728853229472,0.000819,62873.0,62871.0,0.84660085]
[1728853229689,0.000819,62873.0,62871.0,0.65650085]
[1728853229903,0.000819,62873.0,62871.0,0.74667067]
[1728853230131,0.000819,62873.0,62871.0,0.86778469]
[1728853231052,0.000819,62873.0,62871.0,0.89578469]
[1728853231511,0.000819,62873.0,62871.0,0.91956844]
[1728853231965,0.000819,62873.0,62871.0,0.80061487]
[1728853232891,0.000319,62872.0,62871.0,0.8952699]
[1728853233542,0.000319,62872.0,62871.0,0.89526173]
[1728853233773,0.000319,62872.0,62871.0,0.80011487]
[1728853234048,0.000319,62872.0,62871.0,0.79511487]
[1728853234472,0.000319,62872.0,62871.0,0.80175287]
[1728853234653,0.000319,62872.0,62871.0,0.80170051]
[1728853235300,0.000319,62872.0,62871.0,0.79270051]
[1728853235510,0.000319,62872.0,62871.0,0.78770051]
[1728853235724,0.000319,62872.0,62871.0,0.79870051]
[1728853235932,0.000319,62872.0,62871.0,0.78770051]
[1728853236149,0.000319,62872.0,62871.0,0.96003999]
[1728853236403,0.013338,62886.0,62885.0,0.26402]
[1728853236644,0.013338,62886.0,62885.0,0.93589486]
[1728853236645,0.25375922,62886.0,62885.0,0.93589486]
[1728853236860,0.013338,62886.0,62885.0,0.93589486]
[1728853237070,0.013338,62886.0,62885.0,1.0546834]
[1728853237557,0.013338,62886.0,62885.0,1.03084038]
[1728853237797,0.013338,62886.0,62885.0,1.03084036]
[1728853238027,0.013338,62886.0,62885.0,1.04484036]
[1728853238244,0.013338,62886.0,62885.0,0.85889486]
[1728853238458,0.013338,62886.0,62885.0,0.93008925]
[1728853238669,0.013338,62886.0,62885.0,0.94408925]
[1728853239095,0.013338,62886.0,62885.0,0.93203692]
[1728853239319,0.013338,62886.0,62885.0,0.94584576]
[1728853239791,0.013338,62886.0,62885.0,0.6994457]
[1728853240240,0.013338,62886.0,62885.0,0.7134457]
[1728853240498,0.013338,62886.0,62885.0,0.75865232]
[1728853240715,0.013338,62886.0,62885.0,0.74465232]
[1728853240944,0.013338,62886.0,62885.0,0.5323383]
[1728853241185,0.013338,62886.0,62885.0,0.49890239]
[1728853242282,0.013338,62886.0,62885.0,0.51290239]
[1728853247089,0.014157,62886.0,62885.0,0.69259056]
[1728853251458,0.014157,62886.0,62885.0,0.68759056]
[1728853260788,0.014157,62886.0,62885.0,0.78529056]
[1728853261020,0.014157,62886.0,62885.0,0.79029056]
[1728853263952,0.014157,62886.0,62885.0,0.73596419]
[1728853266755,0.014157,62886.0,62885.0,0.24406871]
[1728853266981,0.193157,62886.0,62885.0,0.24406871]
[1728853267222,0.193157,62886.0,62885.0,0.21896]
[1728853267889,0.193157,62886.0,62885.0,0.20496]
[1728853268100,0.193157,62886.0,62885.0,0.21596]
[1728853268534,0.193157,62886.0,62885.0,0.19096]
[1728853268759,0.193157,62886.0,62885.0,0.19596]
[1728853268982,0.193157,62886.0,62885.0,0.20296]
[1728853269934,0.112457,62886.0,62885.0,0.3149838]
[1728853270198,0.014157,62886.0,62885.0,0.3149838]
[1728853270441,0.014157,62886.0,62885.0,0.36418401]
[1728853271139,0.014157,62886.0,62885.0,0.35718401]
[1728853271361,0.014157,62886.0,62885.0,0.36818401]
[1728853271573,0.014157,62886.0,62885.0,0.36318401]
[1728853271795,0.014157,62886.0,62885.0,0.37218401]
[1728853272235,0.014157,62886.0,62885.0,0.19096]
[1728853272447,0.014157,62886.0,62885.0,0.19996]
[1728853272718,0.014157,62886.0,62885.0,0.21096]
[1728853272928,0.191857,62886.0,62885.0,0.21096]
[1728853273354,0.191857,62886.0,62885.0,0.20196]
[1728853273582,0.191857,62886.0,62885.0,0.21096]
[1728853273805,0.191857,62886.0,62885.0,0.19996]
[1728853274249,0.191857,62886.0,62885.0,0.21096]
[1728853274479,0.014157,62886.0,62885.0,0.21096]
[1728853287769,0.346674,62886.0,62885.0,0.05194]
[1728853288426,0.346674,62886.0,62885.0,0.02]
[1728853288861,0.346674,62886.0,62885.0,0.011]
[1728853289071,0.346674,62886.0,62885.0,0.014]
[1728853289305,0.346674,62886.0,62885.0,0.003]
[1728853289552,0.346674,62886.0,62885.0,0.011]
[1728853290000,0.346674,62886.0,62885.0,0.003]
[1728853290442,0.346674,62886.0,62885.0,0.008]
[1728853296504,0.50789801,62886.0,62885.0,0.008]
[1728853297399,0.346674,62886.0,62885.0,0.003]
[1728853297631,0.346675,62886.0,62885.0,0.001]
[1728853297860,0.187657,62886.0,62885.0,0.001]
[1728853298311,0.187657,62886.0,62885.0,0.002]
[1728853298803,0.187657,62886.0,62885.0,0.001]
[1728853299448,0.187657,62886.0,62884.0,0.159022]
[1728853299900,0.188657,62886.0,62884.0,0.159022]
[1728853300331,0.187657,62886.0,62884.0,0.159022]
[1728853304196,0.187657,62886.0,62881.0,0.31806]
[1728853304197,0.187657,62886.0,62879.0,0.59200922]
[1728853304425,0.346676,62886.0,62883.0,0.159025]
[1728853304656,0.346676,62886.0,62880.0,0.349943]
[1728853305152,0.346676,62886.0,62883.0,0.159025]
[1728853305388,0.159022,62885.0,62880.0,0.190912]
[1728853305610,0.159021,62885.0,62881.0,0.159028]
[1728853305837,0.15902,62885.0,62881.0,0.159028]
[1728853306064,0.15902,62885.0,62880.0,0.03188]
[1728853306065,0.318042,62885.0,62880.0,0.03188]
[1728853306540,0.159023,62884.0,62881.0,0.159029]
[1728853307013,0.346677,62886.0,62881.0,0.159029]
[1728853307748,0.0027678,62885.0,62882.0,0.159027]
[1728853308002,0.0027678,62885.0,62880.0,0.349942]
[1728853308251,0.0027678,62885.0,62883.0,0.159024]
[1728853308491,0.0027678,62885.0,62880.0,0.350942]
[1728853308760,0.15903,62881.0,62880.0,0.001]
[1728853308979,0.25113,62881.0,62880.0,0.001]
[1728853309455,0.33502401,62881.0,62879.0,0.001638]
[1728853309686,0.52443937,62880.0,62879.0,0.001638]
[1728853310615,0.41235701,62880.0,62879.0,0.001638]
[1728853311601,0.41335701,62880.0,62879.0,0.001638]
[1728853324461,0.52543937,62880.0,62879.0,0.001638]
[1728853324933,0.52443937,62880.0,62879.0,0.001638]
[1728853325403,0.52543937,62880.0,62879.0,0.001638]
[1728853325879,0.52443937,62880.0,62879.0,0.001638]
[1728853326353,0.52543937,62880.0,62879.0,0.001638]
[1728853328316,0.001,62880.0,62879.0,0.160673]
[1728853329032,0.13699319,62881.0,62880.0,0.159033]
[1728853329260,0.014157,62886.0,62880.0,0.31712122]
[1728853329659,0.014157,62886.0,62885.0,0.15902]
[1728853331989,0.014157,62886.0,62885.0,0.16102]
[1728853339347,0.014157,62886.0,62885.0,0.33712]
[1728853339573,0.014157,62886.0,62885.0,0.44920236]
[1728853342307,0.014157,62886.0,62885.0,0.61042637]
[1728853342572,0.014157,62886.0,62885.0,0.64230637]
[1728853342798,0.014157,62886.0,62885.0,0.68979487]
[1728853343019,0.014157,62886.0,62885.0,0.64230637]
[1728853343464,0.014157,62886.0,62885.0,0.68775324]
[1728853343710,0.014157,62886.0,62885.0,0.64030637]
[1728853343930,0.014157,62886.0,62885.0,0.70774093]
[1728853344162,0.014157,62886.0,62885.0,0.70174093]
[1728853344385,0.014157,62886.0,62885.0,0.60265857]
[1728853344626,0.014157,62886.0,62885.0,0.66730637]
[1728853348866,0.014157,62886.0,62885.0,0.2985]
[1728853353933,0.014157,62886.0,62885.0,0.2179]
[1728853355340,0.014157,62886.0,62885.0,0.2049]
[1728853355577,0.014157,62886.0,62885.0,0.2119]
[1728853355810,0.014157,62886.0,62885.0,0.1979]
[1728853356058,0.014157,62886.0,62885.0,0.2069]
[1728853362055,0.014157,62886.0,62885.0,0.04788]
[1728853362283,0.014157,62886.0,62885.0,0.2069]
[1728853363183,0.01692447,62886.0,62885.0,0.2069]
[1728853364108,0.014157,62886.0,62885.0,0.2069]
[1728853364572,0.014157,62886.0,62885.0,0.04788]
[1728853364792,0.014157,62886.0,62885.0,0.2069]
[1728853369932,0.014157,62886.0,62885.0,0.04788]
[1728853370160,0.014157,62886.0,62885.0,0.2069]
[1728853379733,0.173174,62886.0,62885.0,0.04788]
[1728853380882,0.173174,62886.0,62882.0,0.190907]
[1728853381156,0.014157,62886.0,62885.0,0.004]
[1728853381390,0.28525636,62886.0,62885.0,0.004]
[1728853381606,0.28525636,62886.0,62885.0,0.001]
[1728853381824,0.28525636,62886.0,62885.0,0.003]
[1728853382298,0.12623936,62886.0,62885.0,0.002]
[1728853382524,0.014157,62886.0,62885.0,0.002]
[1728853383221,0.014157,62886.0,62883.0,0.159025]
[1728853383444,0.014157,62886.0,62885.0,0.001]
[1728853383912,0.014157,62886.0,62883.0,0.159025]
[1728853384358,0.015157,62886.0,62885.0,0.15902]
[1728853384581,0.01792458,62886.0,62885.0,0.15902]
[1728853384797,0.01692458,62886.0,62885.0,0.15902]
[1728853385033,0.01792458,62886.0,62884.0,0.159022]
[1728853385700,0.093,62884.0,62880.0,0.318062]
[1728853385919,0.093,62884.0,62883.0,0.159025]
[1728853387813,0.093,62884.0,62883.0,0.160025]
[1728853390583,0.093,62884.0,62883.0,0.001]
[1728853394637,0.093,62884.0,62883.0,0.160025]
[1728853398354,0.093,62884.0,62883.0,0.001]
[1728853399278,0.093,62884.0,62883.0,0.160025]
[1728853406133,0.01692458,62886.0,62884.0,0.159022]
[1728853406371,0.01692458,62886.0,62883.0,0.001]
[1728853406609,0.01692458,62886.0,62884.0,0.159022]
[1728853408275,0.01792458,62886.0,62884.0,0.159022]
[1728853409628,0.01792458,62886.0,62885.0,0.15902]
[1728853409854,0.015157,62886.0,62885.0,0.15902]
[1728853411613,0.014157,62886.0,62885.0,0.15902]
[1728853411847,0.015157,62886.0,62885.0,0.15902]
[1728853412298,0.014157,62886.0,62885.0,0.15902]
[1728853412754,0.014157,62886.0,62885.0,0.16102]
[1728853425337,0.014157,62886.0,62885.0,0.002]
[1728853425555,0.112657,62886.0,62885.0,0.002]
[1728853426454,0.112657,62886.0,62885.0,0.16102]
[1728853428295,0.271674,62886.0,62885.0,0.002]
[1728853428756,0.43289801,62886.0,62885.0,0.002]
[1728853428992,0.51139801,62886.0,62885.0,0.002]
[1728853429238,0.53630826,62886.0,62885.0,0.002]
[1728853429469,0.60796627,62886.0,62885.0,0.002]
[1728853429735,0.72004863,62886.0,62885.0,0.002]
[1728853429971,0.83860851,62886.0,62885.0,0.002]
[1728853430215,0.78985008,62886.0,62885.0,0.001]
[1728853430444,0.441025,62883.0,62882.0,0.001638]
[1728853430669,0.98778344,62883.0,62882.0,0.001638]
[1728853430908,1.10717067,62883.0,62882.0,0.001638]
[1728853431156,1.11193916,62883.0,62882.0,0.001638]
[1728853431863,1.11193916,62883.0,62882.0,0.002638]
[1728853431864,1.36393916,62883.0,62882.0,0.002638]
[1728853432318,1.33997753,62883.0,62882.0,0.003638]
[1728853433021,1.33797753,62883.0,62882.0,0.003638]
[1728853433263,1.24255193,62883.0,62882.0,0.003638]
[1728853434255,1.338992,62883.0,62882.0,0.003638]
[1728853434888,1.340992,62883.0,62882.0,0.003638]
[1728853435086,1.338992,62883.0,62882.0,0.003638]
[1728853435323,1.340992,62883.0,62882.0,0.003638]
[1728853436327,1.26946694,62883.0,62882.0,0.003638]
[1728853437254,1.31712073,62883.0,62882.0,0.003638]
[1728853438627,1.31711077,62883.0,62882.0,0.003638]
[1728853439288,1.26946694,62883.0,62882.0,0.003638]
[1728853440023,1.34093269,62883.0,62882.0,0.003638]
[1728853440728,1.31601768,62883.0,62882.0,0.003638]
[1728853441689,1.42810004,62883.0,62882.0,0.003638]
[1728853442372,1.35663429,62883.0,62882.0,0.003638]
[1728853442587,0.49019772,62880.0,62879.0,0.001638]
[1728853442814,0.82972173,62880.0,62879.0,0.001638]
[1728853443036,0.82972173,62880.0,62872.0,0.24042122]
[1728853443037,0.44435,62873.0,62872.0,0.24042122]
[1728853443259,0.82973873,62873.0,62872.0,0.24042122]
[1728853443509,0.266053,62872.0,62871.0,0.001638]
[1728853443743,0.7646943,62872.0,62871.0,0.001638]
[1728853444659,0.7876943,62872.0,62871.0,0.001638]
[1728853444890,1.0376943,62872.0,62871.0,0.001638]
[1728853445347,1.0376943,62872.0,62871.0,0.002638]
[1728853445348,1.0506943,62872.0,62871.0,0.002638]
[1728853445808,1.0646943,62872.0,62871.0,0.003638]
[1728853446044,1.0646943,62872.0,62871.0,0.002638]
[1728853446045,1.0516943,62872.0,62871.0,0.002638]
[1728853446322,1.11226005,62872.0,62871.0,0.003638]
[1728853446552,1.11226005,62872.0,62864.0,0.001638]
[1728853446553,0.439865,62867.0,62864.0,0.001638]
[1728853446781,0.82525373,62867.0,62864.0,0.001638]
[1728853447905,1.07525373,62867.0,62864.0,0.001638]
[1728853448137,1.14701216,62867.0,62864.0,0.001638]
[1728853448361,1.16001216,62867.0,62866.0,0.002638]
[1728853448589,1.32138187,62867.0,62866.0,0.002638]
[1728853449082,1.33538187,62867.0,62866.0,0.002638]
[1728853449772,1.06045872,62867.0,62866.0,0.002638]
[1728853449991,0.98817137,62867.0,62866.0,0.002638]
[1728853450471,0.99017137,62867.0,62866.0,0.002638]
[1728853450720,0.54978901,62867.0,62866.0,0.002638]
[1728853450940,0.34728901,62867.0,62866.0,0.002638]
[1728853451416,0.35005759,62867.0,62866.0,0.002638]
[1728853451647,0.32305759,62867.0,62866.0,0.001638]
[1728853451868,0.32028901,62867.0,62866.0,0.001638]
[1728853452092,0.34828901,62867.0,62866.0,0.003638]
[1728853452314,0.33428901,62867.0,62866.0,0.002638]
[1728853452539,0.318117,62870.0,62866.0,0.001638]
[1728853452803,0.008,62867.0,62866.0,0.001638]
[1728853453454,0.005,62867.0,62866.0,0.001638]
[1728853454151,0.164065,62867.0,62866.0,0.001638]
[1728853454372,0.164065,62867.0,62866.0,0.002638]
[1728853454585,0.159065,62867.0,62866.0,0.001638]
[1728853454803,0.164065,62867.0,62866.0,0.002638]
[1728853455049,0.005,62867.0,62866.0,0.002638]
[1728853455336,0.005,62867.0,62866.0,0.161706]
[1728853455577,0.005,62867.0,62866.0,0.160706]
[1728853456018,0.005,62867.0,62866.0,0.243606]
[1728853456238,0.008,62867.0,62866.0,0.243606]
[1728853457362,0.003,62867.0,62866.0,0.243606]
[1728853457581,0.003,62867.0,62866.0,0.246606]
[1728853458029,0.00276834,62870.0,62866.0,0.246606]
[1728853458247,0.16182634,62870.0,62866.0,0.251606]
[1728853458903,0.16182634,62870.0,62866.0,0.248606]
[1728853459123,0.16182634,62870.0,62866.0,0.243606]
[1728853459371,0.1867417,62870.0,62866.0,0.243606]
[1728853459613,0.1867417,62870.0,62866.0,0.245606]
[1728853460492,0.16182634,62870.0,62866.0,0.245606]
[1728853462237,0.16182634,62870.0,62866.0,0.245605]
[1728853462459,0.00276834,62870.0,62867.0,0.159064]
[1728853463415,0.16182734,62870.0,62866.0,0.086538]
[1728853463635,0.318111,62871.0,62866.0,0.086538]
[1728853463636,0.159061,62869.0,62866.0,0.245605]
[1728853464080,0.159052,62873.0,62867.0,0.31813]
[1728853464301,0.159054,62872.0,62868.0,0.159063]
[1728853464959,0.318102,62873.0,62866.0,0.085538]
[1728853465201,0.318102,62873.0,62867.0,0.159065]
[1728853465202,0.159057,62871.0,62867.0,0.159065]
[1728853466127,0.159052,62873.0,62868.0,0.318126]
[1728853466376,0.159042,62877.0,62873.0,0.159049]
[1728853466615,0.02991518,62882.0,62871.0,0.658464]
[1728853466616,0.002,62872.0,62871.0,0.658464]
[1728853466857,0.002,62872.0,62871.0,0.77054636]
[1728853467549,0.000819,62880.0,62878.0,0.0815]
[1728853469160,0.003819,62880.0,62878.0,0.0815]
[1728853469617,0.162852,62880.0,62878.0,0.0815]
[1728853470287,0.167852,62880.0,62878.0,0.0815]
[1728853471230,0.159852,62880.0,62878.0,0.0815]
[1728853471444,0.004819,62880.0,62878.0,0.0815]
[1728853471660,0.163852,62880.0,62878.0,0.0815]
[1728853471879,0.004819,62880.0,62878.0,0.240536]
[1728853472100,0.004819,62880.0,62878.0,0.0815]
[1728853472101,0.163852,62880.0,62878.0,0.0815]
[1728853472593,0.3220648,62879.0,62868.0,0.0814]
[1728853472813,0.3220648,62879.0,62870.0,0.159058]
[1728853472814,0.11208236,62871.0,62870.0,0.159058]
[1728853473035,0.11208236,62871.0,62868.0,0.431404]
[1728853473253,0.11208236,62871.0,62870.0,0.159058]
[1728853473696,0.159046,62875.0,62872.0,0.159052]
[1728853473697,0.27112836,62875.0,62872.0,0.159052]
[1728853474159,0.27112936,62875.0,62870.0,0.514048]
[1728853474807,0.11208236,62875.0,62870.0,0.03188]
[1728853475034,0.11308236,62875.0,62871.0,0.159054]
[1728853475253,0.27212836,62875.0,62871.0,0.159054]
[1728853475487,0.11308236,62875.0,62870.0,0.03988]
[1728853475927,0.27212836,62875.0,62871.0,0.159055]
[1728853476397,0.27112836,62875.0,62871.0,0.159055]
[1728853476837,0.27212836,62875.0,62871.0,0.159055]